Workbook

Sheet Лист1
A1: Школа | C1: МБОУ СОШ с.Исаметово | F1: Утвердил: | G1: должность | H1: Директор Набиева Альбина Фанзиловна
A2: Типовое примерное меню приготавливаемых блюд | G2: фамилия
A3: Возрастная категория | E3: от 7 до 11 лет | G3: дата | H3: 2024-08-30
A5: Неделя | B5: День недели | C5: Прием пищи | D5: Раздел меню | E5: Блюда | F5: Вес блюда, г | G5: Белки | H5: Жиры | I5: Углеводы | J5: Калорийность | K5: № рецептуры | L5: Цена
A6: 1 | B6: 1 | C6: Завтрак | D6: гор.блюдо | E6: Макаронные изделия отварные | F6: 160 | G6: 5.74 | H6: 4.23 | I6: 38.26 | J6: 217.73 | K6: 197 | L6: 7.33
D7: гор.блюдо | E7: Биточки рубленые из мяса птицы с соусом томатным | F7: 90 | G7: 11.58 | H7: 5.39 | I7: 13.53 | J7: 150.3 | K7: 126 | L7: 31.52
D8: гор.напиток | E8: Чай с лимоном 200 | F8: 200 | G8: 0.14 | H8: 0.03 | I8: 10.22 | J8: 42.89 | K8: 273 | L8: 2.3
D9: хлеб | E9: Хлеб пшеничный, обогащенный (для детского питания) | F9: 30 | G9: 2.44 | H9: 0.3 | I9: 14.64 | J9: 72.6 | K9: 1 | L9: 2.64
D10: закуска | E10: Салат из моркови | F10: 60 | G10: 0.66 | H10: 3.05 | I10: 9.51 | J10: 68.76 | K10: 16 | L10: 4.51
E11: Масло порциями | F11: 10 | G11: 0.08 | H11: 7.25 | I11: 0.13 | J11: 66.1 | K11: 7 | L11: 7
D12: фрукты | E12: Яблоко | F12: 100 | G12: 0.4 | H12: 0.4 | I12: 9.8 | J12: 47 | L12: 13.2
D13: итого | F13: =SUM(F6:F12) -> 650 | G13: =SUM(G6:G12) -> 21.04 | H13: 20.65 | I13: 96.09 | J13: 665.38 | L13: =SUM(L6:L12) -> 68.5
A14: =A6 -> 1 | B14: =B6 -> 1 | C14: Обед | D14: закуска
D15: 1 блюдо
D16: 2 блюдо
D17: гарнир
D18: напиток
D19: хлеб бел.
D20: хлеб черн.
D23: итого
A24: =A6 -> 1 | B24: =B6 -> 1 | C24: Итого за день:
A25: 1 | B25: 2 | C25: Завтрак | D25: гор.блюдо | E25: Каша рисовая молочная вязкая | F25: 185 | G25: 5.21 | H25: 6.95 | I25: 37.92 | J25: 233.84 | K25: 186 | L25: 12.48
D26: гор.напиток | E26: Компот из сухофруктов | F26: 200 | G26: 0.78 | H26: 0.06 | I26: 30.1 | J26: 125.2 | K26: 707 | L26: 6.04
D27: хлеб | E27: Хлеб ржаной обогащенный | F27: 30 | G27: 1.48 | H27: 0.3 | I27: 13.44 | J27: 63 | K27: 3 | L27: 3
D28: закуска | E28: Салат из белокочанной капусты, моркови и кукурузы | F28: 60 | G28: 1.41 | H28: 4.19 | I28: 6.78 | J28: 65.3 | K28: 10 | L28: 6.85
E29: Сыр | F29: 10 | G29: 2.32 | H29: 2.95 | I29: 0 | J29: 36.4 | K29: 9 | L29: 6.2
E30: Печенье для детского питания | F30: 50 | G30: 4 | H30: 5.5 | I30: 32.7 | J30: 196 | L30: 20
D31: фрукты | E31: Яблоко | F31: 100 | G31: 0.4 | H31: 0.4 | I31: 9.8 | J31: 47 | L31: 13.2
D32: итого | F32: =SUM(F25:F31) -> 635 | G32: =SUM(G25:G31) -> 15.6 | H32: 20.35 | I32: 130.74 | J32: 766.74 | L32: =SUM(L25:L31) -> 67.77
A33: =A25 -> 1 | B33: =B25 -> 2 | C33: Обед | D33: закуска
D34: 1 блюдо
D35: 2 блюдо
D36: гарнир
D37: напиток
D38: хлеб бел.
D39: хлеб черн.
D42: итого
A43: =A25 -> 1 | B43: =B25 -> 2 | C43: Итого за день:
A44: 1 | B44: 3 | C44: Завтрак | D44: гор.блюдо | E44: Каша ячневая молочная вязкая | F44: 185 | G44: 6.69 | H44: 32.9 | I44: 9.62 | J44: 234.2 | K44: 24 | L44: 9.75
D45: гор.блюдо | E45: Запеканка из творога со сгущенным молоком | F45: 85 | G45: 16.439 | H45: 6.862 | I45: 19.006 | J45: 206.454 | K45: 215 | L45: 25.35
D46: гор.напиток | E46: Чай с сахаром | F46: 200 | G46: 0.08 | H46: 0.02 | I46: 10.01 | J46: 40.51 | K46: 271 | L46: 1.1
D47: хлеб | E47: Хлеб пшеничный, обогащенный (для детского питания) | F47: 30 | G47: 2.44 | H47: 0.3 | I47: 14.64 | J47: 72.6 | K47: 1 | L47: 2.64
D48: фрукты | E48: Яблоко | F48: 100 | G48: 0.4 | H48: 0.4 | I48: 9.8 | J48: 47 | L48: 13.2
D49: закуска | E49: Салат из свеклы с растительным маслом | F49: 60 | G49: 0.99 | H49: 5 | I49: 5.94 | J49: 71.36 | K49: 24 | L49: 4.71
D50: сладкое
D51: итого | F51: =SUM(F44:F49) -> 660 | G51: =SUM(G44:G49) -> 27.039 | H51: 45.482 | I51: 69.016 | J51: 672.124 | L51: =SUM(L44:L49) -> 56.75
A52: =A44 -> 1 | B52: =B44 -> 3 | C52: Обед | D52: закуска
D53: 1 блюдо
D54: 2 блюдо
D55: гарнир
D56: напиток
D57: хлеб бел.
D58: хлеб черн.
D61: итого
A62: =A44 -> 1 | B62: =B44 -> 3 | C62: Итого за день:
A63: 1 | B63: 4 | C63: Завтрак | D63: гор.блюдо | E63: Каша пшенная молочная | F63: 150 | G63: 5.6 | H63: 6.6 | I63: 26.4 | J63: 187 | K63: дохе1 | L63: 6.49
D64: закуска | E64: Салат из моркови и яблок | F64: 60 | G64: 0.56 | H64: 2.09 | I64: 5.86 | J64: 45.25 | K64: 18 | L64: 8.72
D65: гор.напиток | E65: Какао на молоке | F65: 200 | G65: 9.2 | H65: 7.1 | I65: 11.03 | J65: 148.46 | K65: 266 | L65: 13.52
D66: хлеб | E66: Хлеб ржаной обогащенный | F66: 30 | G66: 1.48 | H66: 0.3 | I66: 13.44 | J66: 63 | K66: 3 | L66: 3
D67: фрукты | E67: Яблоко | F67: 100 | G67: 0.4 | H67: 0.4 | I67: 9.8 | J67: 47 | L67: 13.2
D68: сладкое | E68: Сок фруктовый в индивидуальной упаковке 0,2 шт | F68: 200 | G68: 1 | H68: 0.2 | I68: 20.2 | J68: 92 | L68: 22
D70: итого | F70: =SUM(F63:F68) -> 740 | G70: =SUM(G63:G68) -> 18.24 | H70: 16.69 | I70: 86.73 | J70: 582.71 | L70: =SUM(L63:L68) -> 66.93
A71: =A63 -> 1 | B71: =B63 -> 4 | C71: Обед | D71: закуска
D72: 1 блюдо
D73: 2 блюдо
D74: гарнир
D75: напиток
D76: хлеб бел.
D77: хлеб черн.
D80: итого
A81: =A63 -> 1 | B81: =B63 -> 4 | C81: Итого за день:
A82: 1 | B82: 5 | C82: Завтрак | D82: гор.блюдо | E82: Картофельное пюре | F82: 170 | G82: 4.31 | H82: 5.78 | I82: 19.44 | J82: 144.5 | K82: 133 | L82: 15.18
D83: гор.блюдо | E83: Котлеты мясные с томатным соусом | F83: 90 | G83: 11.4 | H83: 10.63 | I83: 18.69 | J83: 216.61 | K83: 92 | L83: 37.43
D84: гор.напиток | E84: Чай с сахаром | F84: 200 | G84: 0.08 | H84: 0.02 | I84: 10.01 | J84: 40.51 | K84: 271 | L84: 1.1
D85: хлеб | E85: Хлеб пшеничный, обогащенный (для детского питания) | F85: 30 | G85: 2.44 | H85: 0.3 | I85: 14.64 | J85: 72.6 | K85: 1 | L85: 2.64
D86: закуска | E86: Салат из моркови | F86: 60 | G86: 0.66 | H86: 3.05 | I86: 9.51 | J86: 68.76 | K86: 16 | L86: 4.52
D89: итого | F89: =SUM(F82:F86) -> 550 | G89: =SUM(G82:G86) -> 18.89 | H89: 19.78 | I89: 72.29 | J89: 542.98 | L89: =SUM(L82:L86) -> 60.87
A90: =A82 -> 1 | B90: =B82 -> 5 | C90: Обед | D90: закуска
D91: 1 блюдо
D92: 2 блюдо
D93: гарнир
D94: напиток
D95: хлеб бел.
D96: хлеб черн.
D97: булочное
D99: итого
A100: =A82 -> 1 | B100: =B82 -> 5 | C100: Итого за день:
A101: 2 | B101: 1 | C101: Завтрак | D101: гор.блюдо | E101: Каша рисовая рассыпчатая | F101: 180 | G101: 4.21 | H101: 4.06 | I101: 49.14 | J101: 247 | K101: 171 | L101: 10.46
D102: гор.блюдо | E102: Котлеты рубленые из птицы | F102: 60 | G102: 5.18 | H102: 10.48 | I102: 15.9 | J102: 178.85 | K102: 129 | L102: 32.86
D103: гор.напиток | E103: Чай с молоком и сахаром | F103: 200 | G103: 1.65 | H103: 1.65 | I103: 12.4 | J103: 71.4 | K103: 259 | L103: 4.08
D104: хлеб | E104: Хлеб ржаной обогащенный | F104: 30 | G104: 1.48 | H104: 0.3 | I104: 13.44 | J104: 63 | K104: 3 | L104: 3
D105: сладкое | E105: Сок фруктовый в индивидуальной упаковке 0,2 шт | F105: 200 | G105: 1 | H105: 0.2 | I105: 20.2 | J105: 92 | L105: 22
D108: итого | F108: =SUM(F101:F105) -> 670 | G108: =SUM(G101:G105) -> 13.52 | H108: 16.69 | I108: 111.08 | J108: 652.25 | L108: =SUM(L101:L105) -> 72.4
A109: =A101 -> 2 | B109: =B101 -> 1 | C109: Обед | D109: закуска
D110: 1 блюдо
D111: 2 блюдо
D112: гарнир
D113: напиток
D114: хлеб бел.
D115: хлеб черн.
D118: итого
A119: =A101 -> 2 | B119: =B101 -> 1 | C119: Итого за день:
A120: 2 | B120: 2 | C120: Завтрак | D120: гор.блюдо | E120: Каша молочная "Дружба" | F120: 200 | G120: 6.31 | H120: 7.63 | I120: 35.41 | J120: 235.66 | K120: 196 | L120: 11.34
D121: закуска | E121: Винегрет | F121: 60 | G121: 0.81 | H121: 2.08 | I121: 6.7 | J121: 48.9 | K121: 26 | L121: 5.24
D122: гор.напиток | E122: Какао на молоке | F122: 200 | G122: 9.2 | H122: 7.1 | I122: 11.03 | J122: 148.46 | K122: 266 | L122: 6.19
D123: хлеб | E123: Хлеб пшеничный, обогащенный (для детского питания) | F123: 30 | G123: 2.44 | H123: 0.3 | I123: 14.64 | J123: 72.6 | K123: 1 | L123: 2.64
E124: Сыр | F124: 10 | G124: 2.32 | H124: 2.95 | I124: 0 | J124: 36.4 | K124: 9 | L124: 6.5
E125: Йогурт детский питьевой | F125: 100 | G125: 4 | H125: 1.5 | I125: 14.3 | J125: 90 | L125: 23
D127: итого | F127: =SUM(F120:F125) -> 600 | G127: =SUM(G120:G125) -> 25.08 | H127: 21.56 | I127: 82.08 | J127: 632.02 | L127: =SUM(L120:L125) -> 54.91
A128: =A120 -> 2 | B128: =B120 -> 2 | C128: Обед | D128: закуска
D129: 1 блюдо
D130: 2 блюдо
D131: гарнир
D132: напиток
D133: хлеб бел.
D134: хлеб черн.
D137: итого
A138: =A120 -> 2 | B138: =B120 -> 2 | C138: Итого за день:
A139: 2 | B139: 3 | C139: Завтрак | D139: гор.блюдо | E139: Каша гречневая | F139: 170 | G139: 9.87 | H139: 6.2 | I139: 44.6 | J139: 273.29 | K139: 330 | L139: 7.34
D140: гор.блюдо | E140: Филе грудки припущенное с овощами | F140: 100 | G140: 5.19 | H140: 13.26 | I140: 5.51 | J140: 162.98 | K140: 439 | L140: 40.83
D141: гор.напиток | E141: Напиток Витошка витаминный | F141: 200 | G141: 0 | H141: 0 | I141: 1.5 | J141: 3.2 | K141: 267 | L141: 5.6
D142: хлеб | E142: Хлеб ржаной обогащенный | F142: 30 | G142: 1.48 | H142: 0.3 | I142: 13.44 | J142: 63 | K142: 3 | L142: 3
E143: Печенье для детского питания | F143: 50 | G143: 4 | H143: 5.5 | I143: 32.7 | J143: 196 | L143: 20
D146: итого | F146: =SUM(F139:F144) -> 550 | G146: =SUM(G139:G144) -> 20.54 | H146: =SUM(H139:H144) -> 25.26 | I146: =SUM(I139:I144) -> 97.75 | J146: =SUM(J139:J144) -> 698.47 | L146: =SUM(L139:L145) -> 76.77
A147: =A139 -> 2 | B147: =B139 -> 3 | C147: Обед | D147: закуска
D148: 1 блюдо
D149: 2 блюдо
D150: гарнир
D151: напиток
D152: хлеб бел.
D153: хлеб черн.
D156: итого
A157: =A139 -> 2 | B157: =B139 -> 3 | C157: Итого за день:
A158: 2 | B158: 4 | C158: Завтрак | D158: гор.блюдо | E158: Макароны, запеченные с сыром | F158: 170 | G158: 8.96 | H158: 15.18 | I158: 35.05 | J158: 316.93 | K158: 205 | L158: 23.76
D159: гор.блюдо | E159: Тефтели из говядины с рисом и томатным соусом | F159: 90 | G159: 8.4 | H159: 13.28 | I159: 10.07 | J159: 193.38 | K159: 264 | L159: 36.67
D160: гор.напиток | E160: Кофейный напиток | F160: 200 | G160: 2.91 | H160: 3.21 | I160: 14.73 | J160: 100.28 | K160: 275 | L160: 6.42
D161: хлеб | E161: Хлеб пшеничный, обогащенный (для детского питания) | F161: 30 | G161: 2.44 | H161: 0.3 | I161: 14.64 | J161: 72.6 | K161: 1 | L161: 2.64
D162: закуска | E162: Салат из моркови и яблок | F162: 60 | G162: 0.56 | H162: 2.09 | I162: 5.86 | J162: 45.25 | K162: 18 | L162: 5.38
D163: фрукты | E163: Яблоко | F163: 100 | G163: 0.4 | H163: 0.4 | I163: 9.8 | J163: 47 | L163: 13.2
D165: итого | F165: =SUM(F158:F163) -> 650 | G165: =SUM(G158:G163) -> 23.67 | H165: 34.46 | I165: 90.15 | J165: 775.44 | L165: =SUM(L158:L163) -> 88.07
A166: =A158 -> 2 | B166: =B158 -> 4 | C166: Обед | D166: закуска
D167: 1 блюдо
D168: 2 блюдо
D169: гарнир
D170: напиток
D171: хлеб бел.
D172: хлеб черн.
D175: итого
A176: =A158 -> 2 | B176: =B158 -> 4 | C176: Итого за день:
A177: 2 | B177: 5 | C177: Завтрак | D177: гор.блюдо | E177: Картофельное пюре | F177: 150 | G177: 3.8 | H177: 4.83 | I177: 17.17 | J177: 125.66 | K177: 133 | L177: 16.05
D178: гор.блюдо | E178: Котлета рыбная | F178: 60 | G178: 7.47 | H178: 9.57 | I178: 9.6 | J178: 154.9 | K178: 83 | L178: 28.47
D179: гор.напиток | E179: Компот из сухофруктов | F179: 200 | G179: 0.78 | H179: 0.06 | I179: 30.1 | J179: 125.2 | K179: 707 | L179: 6.04
D180: хлеб | E180: Хлеб ржаной обогащенный | F180: 30 | G180: 1.48 | H180: 0.3 | I180: 13.44 | J180: 63 | K180: 3 | L180: 3
E181: Йогурт детский питьевой | F181: 100 | G181: 4 | H181: 1.5 | I181: 14.3 | J181: 90 | L181: 23
D182: закуска | E182: Салат из белокочанной капусты | F182: 60 | G182: 1.36 | H182: 3.07 | I182: 8.24 | J182: 60.21 | K182: 6 | L182: 5.3
D184: итого | F184: =SUM(F177:F182) -> 600 | G184: =SUM(G177:G182) -> 18.89 | H184: 19.33 | I184: 92.85 | J184: 618.97 | L184: =SUM(L177:L182) -> 81.86
A185: =A177 -> 2 | B185: =B177 -> 5 | C185: Обед | D185: закуска
D186: 1 блюдо
D187: 2 блюдо
D188: гарнир
D189: напиток
D190: хлеб бел.
D191: хлеб черн.
D194: итого
A195: =A177 -> 2 | B195: =B177 -> 5 | C195: Итого за день: | L195: =L184+L165+L146+L127+L108+L89+L70+L51+L32+L13 -> 694.83
